[Event "*** SCC Grand Prix: Titled Tuesday Blitz"]
[Site "Chess.com"]
[Date "2020.06.23"]
[Round "7"]
[White "m_ezat"]
[Black "seorobert1971"]
[Result "0-1"]
[WhiteElo "2547"]
[BlackElo "2701"]
[TimeControl "180+1"]
[EndTime "11:17:40 PDT"]
[Termination "seorobert1971 won on time"]

1. d4 {[%clk 0:03:00.9]} 1... Nf6 {[%clk 0:02:59.6]} 2. c4 {[%clk 0:03:01.3]}
2... g6 {[%clk 0:02:59.6]} 3. Nc3 {[%clk 0:03:01.1]} 3... d5 {[%clk 0:02:57.7]}
4. Bg5 {[%clk 0:02:57.9]} 4... Ne4 {[%clk 0:02:55.3]} 5. cxd5 {[%clk 0:02:57.6]}
5... Nxg5 {[%clk 0:02:52.7]} 6. h4 {[%clk 0:02:57.3]} 6... Ne4 {[%clk
0:02:51.4]} 7. Nxe4 {[%clk 0:02:55.4]} 7... Qxd5 {[%clk 0:02:51.4]} 8. Qd3
{[%clk 0:02:54.2]} 8... Bg7 {[%clk 0:02:45.6]} 9. Nf3 {[%clk 0:02:54]} 9... O-O
{[%clk 0:02:37.3]} 10. h5 {[%clk 0:02:49.6]} 10... Bf5 {[%clk 0:02:28.4]} 11.
Nc3 {[%clk 0:02:47]} 11... Qa5 {[%clk 0:02:23]} 12. e4 {[%clk 0:02:46]} 12...
Bg4 {[%clk 0:02:20.4]} 13. hxg6 {[%clk 0:02:46.4]} 13... hxg6 {[%clk 0:02:20.3]}
14. e5 {[%clk 0:02:36.4]} 14... Nc6 {[%clk 0:02:15]} 15. Qe4 {[%clk 0:02:35.7]}
15... Bxf3 {[%clk 0:02:12.1]} 16. gxf3 {[%clk 0:02:30.2]} 16... Rfd8 {[%clk
0:02:12.1]} 17. e6 {[%clk 0:01:44.3]} 17... f5 {[%clk 0:01:23.8]} 18. Qh4 {[%clk
0:01:42.2]} 18... Nxd4 {[%clk 0:01:22.8]} 19. Be2 {[%clk 0:01:21.2]} 19... Nxe6
{[%clk 0:01:03.3]} 20. Bc4 {[%clk 0:01:14.8]} 20... Kf8 {[%clk 0:00:50.6]} 21.
Kf1 {[%clk 0:01:06.8]} 21... Rd4 {[%clk 0:00:48.9]} 22. Qh7 {[%clk 0:00:56]}
22... Rxc4 {[%clk 0:00:47.6]} 23. Qxg6 {[%clk 0:00:56.2]} 23... Nf4 {[%clk
0:00:27.9]} 24. Qg5 {[%clk 0:00:38.7]} 24... Rxc3 {[%clk 0:00:15.2]} 25. Qxf4
{[%clk 0:00:27]} 25... Rc6 {[%clk 0:00:11.5]} 26. Re1 {[%clk 0:00:22.6]} 26...
Qb5+ {[%clk 0:00:11.4]} 27. Kg2 {[%clk 0:00:17.5]} 27... Rg6+ {[%clk 0:00:11.3]}
28. Kh3 {[%clk 0:00:16.6]} 28... Kf7 {[%clk 0:00:11.5]} 29. Qh4 {[%clk
0:00:10.2]} 29... Rh8 {[%clk 0:00:11.1]} 30. Rxe7+ {[%clk 0:00:03.2]} 30... Kf8
{[%clk 0:00:11]} 31. Qxh8+ {[%clk 0:00:01.5]} 31... Bxh8 {[%clk 0:00:11]} 32.
Rhe1 {[%clk 0:00:02.2]} 32... Qc6 {[%clk 0:00:09.5]} 0-1

[Event "*** SCC Grand Prix: Titled Tuesday Blitz"]
[Site "Chess.com"]
[Date "2020.06.23"]
[Round "7"]
[White "kingofkolkata"]
[Black "AlanTate"]
[Result "1-0"]
[WhiteElo "2223"]
[BlackElo "2351"]
[TimeControl "180+1"]
[EndTime "11:17:40 PDT"]
[Termination "kingofkolkata won on time"]

1. d4 {[%clk 0:03:00.9]} 1... d5 {[%clk 0:02:59.9]} 2. c4 {[%clk 0:03:01.1]}
2... c6 {[%clk 0:03:00.5]} 3. Nc3 {[%clk 0:03:00.6]} 3... Nf6 {[%clk 0:03:00.6]}
4. e3 {[%clk 0:03:01.2]} 4... e6 {[%clk 0:03:00.1]} 5. Nf3 {[%clk 0:03:01.2]}
5... Nbd7 {[%clk 0:02:58.1]} 6. Nd2 {[%clk 0:02:58.3]} 6... Be7 {[%clk
0:02:53.5]} 7. g3 {[%clk 0:02:58.1]} 7... O-O {[%clk 0:02:43.8]} 8. Bg2 {[%clk
0:02:57.9]} 8... Re8 {[%clk 0:02:35.4]} 9. O-O {[%clk 0:02:57.9]} 9... a6 {[%clk
0:02:31.2]} 10. e4 {[%clk 0:02:58]} 10... dxe4 {[%clk 0:02:20.9]} 11. Ndxe4
{[%clk 0:02:58.9]} 11... Nxe4 {[%clk 0:02:20.6]} 12. Nxe4 {[%clk 0:02:58.5]}
12... Nf6 {[%clk 0:01:40]} 13. Nc3 {[%clk 0:02:40.3]} 13... Bd6 {[%clk
0:01:38.2]} 14. Re1 {[%clk 0:02:35.4]} 14... h6 {[%clk 0:01:30.4]} 15. Qf3
{[%clk 0:02:25.7]} 15... Qc7 {[%clk 0:01:27.8]} 16. Bxh6 {[%clk 0:02:22.3]}
16... gxh6 {[%clk 0:01:22.3]} 17. Qxf6 {[%clk 0:02:21.3]} 17... Bf8 {[%clk
0:01:22.9]} 18. Rad1 {[%clk 0:02:12.3]} 18... Bd7 {[%clk 0:01:16.1]} 19. Be4
{[%clk 0:02:07.4]} 19... Bg7 {[%clk 0:01:03.3]} 20. Qh4 {[%clk 0:02:04.4]} 20...
Qb6 {[%clk 0:00:36.1]} 21. Na4 {[%clk 0:01:47.7]} 21... Qd8 {[%clk 0:00:25.2]}
22. Qh5 {[%clk 0:01:36.4]} 22... Qg5 {[%clk 0:00:16.5]} 23. Qf3 {[%clk
0:01:28.1]} 23... Rad8 {[%clk 0:00:14.7]} 24. Nc5 {[%clk 0:01:27.7]} 24... Bc8
{[%clk 0:00:14.8]} 25. Bb1 {[%clk 0:01:07]} 25... Bxd4 {[%clk 0:00:11.6]} 26.
Ne4 {[%clk 0:01:06.7]} 26... Qg7 {[%clk 0:00:09.7]} 27. Rxd4 {[%clk 0:01:03]}
27... Qxd4 {[%clk 0:00:08.7]} 28. Nf6+ {[%clk 0:01:03.2]} 28... Kg7 {[%clk
0:00:08.5]} 29. Nxe8+ {[%clk 0:00:47.4]} 29... Rxe8 {[%clk 0:00:08.2]} 30. Re4
{[%clk 0:00:43.9]} 30... Qxb2 {[%clk 0:00:08.2]} 31. Rg4+ {[%clk 0:00:43.4]}
31... Kf8 {[%clk 0:00:08]} 32. Bg6 {[%clk 0:00:37.5]} 32... Re7 {[%clk
0:00:03.4]} 33. Bh7 {[%clk 0:00:29.6]} 33... f5 {[%clk 0:00:02.4]} 34. Rg8+
{[%clk 0:00:28.1]} 34... Kf7 {[%clk 0:00:02.9]} 35. Qh5+ {[%clk 0:00:28.7]}
35... Kf6 {[%clk 0:00:03.4]} 36. Qxh6+ {[%clk 0:00:20.9]} 36... Ke5 {[%clk
0:00:03.1]} 37. Qf4+ {[%clk 0:00:20.6]} 37... Kf6 {[%clk 0:00:02.4]} 38. Qh4+
{[%clk 0:00:17.8]} 38... Ke5 {[%clk 0:00:02.4]} 39. Qxe7 {[%clk 0:00:16.6]}
39... Qc1+ {[%clk 0:00:01.2]} 40. Kg2 {[%clk 0:00:16.4]} 1-0

[Event "*** SCC Grand Prix: Titled Tuesday Blitz"]
[Site "Chess.com"]
[Date "2020.06.23"]
[Round "7"]
[White "Shahinyan_ChessMood"]
[Black "MateSchmate"]
[Result "1/2-1/2"]
[WhiteElo "2604"]
[BlackElo "2473"]
[TimeControl "180+1"]
[EndTime "11:17:41 PDT"]
[Termination "Game drawn by repetition"]

1. e4 {[%clk 0:03:00.9]} 1... e6 {[%clk 0:03:00.2]} 2. d3 {[%clk 0:03:00.4]}
2... d5 {[%clk 0:03:00.5]} 3. Nd2 {[%clk 0:03:01]} 3... Nf6 {[%clk 0:03:00.3]}
4. Ngf3 {[%clk 0:03:01.6]} 4... Bc5 {[%clk 0:03:00.8]} 5. e5 {[%clk 0:03:02.1]}
5... Nfd7 {[%clk 0:03:00.2]} 6. d4 {[%clk 0:03:03]} 6... Be7 {[%clk 0:03:00.6]}
7. Bd3 {[%clk 0:03:03.9]} 7... c5 {[%clk 0:03:01.2]} 8. c3 {[%clk 0:03:04.5]}
8... Nc6 {[%clk 0:03:01.4]} 9. O-O {[%clk 0:03:05]} 9... g5 {[%clk 0:03:01.6]}
10. Qe2 {[%clk 0:03:05.6]} 10... g4 {[%clk 0:02:56.7]} 11. Ne1 {[%clk
0:03:05.9]} 11... cxd4 {[%clk 0:02:57.1]} 12. cxd4 {[%clk 0:03:06.3]} 12... h5
{[%clk 0:02:49.3]} 13. Nc2 {[%clk 0:03:04.7]} 13... f5 {[%clk 0:02:47.7]} 14.
exf6 {[%clk 0:03:02.6]} 14... Nxf6 {[%clk 0:02:47.8]} 15. Bg6+ {[%clk 0:03:01]}
15... Kf8 {[%clk 0:02:48.2]} 16. f3 {[%clk 0:03:01.2]} 16... Kg7 {[%clk
0:02:42.6]} 17. Bd3 {[%clk 0:03:00.9]} 17... Qb6 {[%clk 0:02:40.1]} 18. Qe3
{[%clk 0:02:53.6]} 18... e5 {[%clk 0:02:36.4]} 19. fxg4 {[%clk 0:02:39.1]} 19...
Nxg4 {[%clk 0:02:31.1]} 20. Qf3 {[%clk 0:02:34.1]} 20... Rf8 {[%clk 0:02:29.2]}
21. Qxd5 {[%clk 0:02:34.1]} 21... Rxf1+ {[%clk 0:02:21.7]} 22. Nxf1 {[%clk
0:02:35]} 22... Nxd4 {[%clk 0:02:19.5]} 23. Be3 {[%clk 0:02:26.6]} 23... Be6
{[%clk 0:02:15.1]} 24. Qe4 {[%clk 0:02:22.8]} 24... Bf5 {[%clk 0:02:09.1]} 25.
Qxf5 {[%clk 0:01:19.3]} 25... Nxf5 {[%clk 0:02:08.7]} 26. Bxb6 {[%clk
0:01:20.2]} 26... axb6 {[%clk 0:02:08.7]} 27. b4 {[%clk 0:01:16.6]} 27... Nd4
{[%clk 0:02:05.7]} 28. Nxd4 {[%clk 0:01:05.6]} 28... exd4 {[%clk 0:02:06.6]} 29.
b5 {[%clk 0:01:01.8]} 29... Ra3 {[%clk 0:02:04.5]} 30. Be4 {[%clk 0:01:00.7]}
30... d3 {[%clk 0:01:59.6]} 31. g3 {[%clk 0:00:55.3]} 31... Bc5+ {[%clk
0:01:56.6]} 32. Kg2 {[%clk 0:00:55.5]} 32... Bd4 {[%clk 0:01:47.7]} 33. Rd1
{[%clk 0:00:55.9]} 33... Rxa2+ {[%clk 0:01:44.9]} 34. Rd2 {[%clk 0:00:56.4]}
34... Ne3+ {[%clk 0:01:42.3]} 35. Kf3 {[%clk 0:00:55.7]} 35... Rxd2 {[%clk
0:01:33.6]} 36. Nxd2 {[%clk 0:00:56.6]} 36... Ng4 {[%clk 0:01:29]} 37. h3 {[%clk
0:00:42.8]} 37... Ne5+ {[%clk 0:01:27.3]} 38. Kf4 {[%clk 0:00:43.3]} 38... Kf6
{[%clk 0:01:11.5]} 39. Nf3 {[%clk 0:00:31.2]} 39... Nxf3 {[%clk 0:01:09.6]} 40.
Bxf3 {[%clk 0:00:31.5]} 40... d2 {[%clk 0:01:09.9]} 41. Bxh5 {[%clk 0:00:27.5]}
41... Be5+ {[%clk 0:01:07.5]} 42. Ke3 {[%clk 0:00:27.9]} 42... Bxg3 {[%clk
0:01:06.5]} 43. Kxd2 {[%clk 0:00:27.8]} 43... Ke5 {[%clk 0:01:07]} 44. Bf3
{[%clk 0:00:27.5]} 44... Kd4 {[%clk 0:01:05.9]} 45. Bxb7 {[%clk 0:00:28.4]}
45... Kc5 {[%clk 0:01:06.3]} 46. Bc6 {[%clk 0:00:28.9]} 46... Kd4 {[%clk
0:01:04.5]} 47. Ke2 {[%clk 0:00:28.5]} 47... Ke5 {[%clk 0:01:01.5]} 48. Kf3
{[%clk 0:00:29.4]} 48... Be1 {[%clk 0:01:01.6]} 49. Kg4 {[%clk 0:00:30.3]} 49...
Kf6 {[%clk 0:01:01.7]} 50. h4 {[%clk 0:00:29.5]} 50... Kg7 {[%clk 0:01:02.2]}
51. h5 {[%clk 0:00:30.4]} 51... Kh8 {[%clk 0:01:02]} 52. Bf3 {[%clk 0:00:31.3]}
52... Bf2 {[%clk 0:01:01.4]} 53. Kf5 {[%clk 0:00:32.2]} 53... Bc5 {[%clk
0:01:02.3]} 54. Ke6 {[%clk 0:00:33.1]} 54... Kg7 {[%clk 0:01:02.4]} 55. Kd7
{[%clk 0:00:32.3]} 55... Kh8 {[%clk 0:01:03.2]} 56. Kc6 {[%clk 0:00:32.7]} 56...
Kg7 {[%clk 0:01:04.1]} 57. Kd5 {[%clk 0:00:33.1]} 57... Kf6 {[%clk 0:01:05]} 58.
Kc6 {[%clk 0:00:32.3]} 58... Kf5 {[%clk 0:01:05]} 59. Kd5 {[%clk 0:00:30.5]}
59... Kf6 {[%clk 0:01:04.6]} 60. Be4 {[%clk 0:00:30.1]} 60... Kg7 {[%clk
0:01:05.5]} 61. Bg6 {[%clk 0:00:30.2]} 61... Kh8 {[%clk 0:01:06.4]} 62. Ke6
{[%clk 0:00:30.6]} 62... Kg7 {[%clk 0:01:06.7]} 63. Kf5 {[%clk 0:00:30.4]} 63...
Kh8 {[%clk 0:01:07.6]} 64. Ke4 {[%clk 0:00:31]} 64... Kg7 {[%clk 0:01:08.5]} 65.
Kd5 {[%clk 0:00:31.9]} 65... Kh8 {[%clk 0:01:09.4]} 66. Be4 {[%clk 0:00:32.4]}
66... Kg7 {[%clk 0:01:10.3]} 67. Bf3 {[%clk 0:00:33.3]} 67... Kh8 {[%clk
0:01:11.2]} 68. Ke4 {[%clk 0:00:34]} 68... Kg7 {[%clk 0:01:12.1]} 69. Kf5 {[%clk
0:00:34.9]} 69... Kh8 {[%clk 0:01:13]} 70. Kg6 {[%clk 0:00:35.4]} 70... Kg8
{[%clk 0:01:12]} 71. h6 {[%clk 0:00:36.3]} 71... Kh8 {[%clk 0:01:12.9]} 72. h7
{[%clk 0:00:37.2]} 72... Bg1 {[%clk 0:01:12.9]} 73. Be4 {[%clk 0:00:38.1]} 73...
Bc5 {[%clk 0:01:13.8]} 74. Kf5 {[%clk 0:00:39]} 74... Bg1 {[%clk 0:01:14.3]} 75.
Ke6 {[%clk 0:00:39.9]} 75... Bc5 {[%clk 0:01:14.6]} 76. Kd5 {[%clk 0:00:40.8]}
76... Bg1 {[%clk 0:01:15.2]} 77. Kc6 {[%clk 0:00:41.7]} 77... Bc5 {[%clk
0:01:15.5]} 78. Kd5 {[%clk 0:00:42.6]} 78... Bg1 {[%clk 0:01:16]} 79. Kc6 {[%clk
0:00:36.2]} 79... Bc5 {[%clk 0:01:16.9]} 80. Kd5 {[%clk 0:00:35.4]} 1/2-1/2

[Event "*** SCC Grand Prix: Titled Tuesday Blitz"]
[Site "Chess.com"]
[Date "2020.06.23"]
[Round "7"]
[White "aa175"]
[Black "Sashadav97"]
[Result "0-1"]
[WhiteElo "2400"]
[BlackElo "2595"]
[TimeControl "180+1"]
[EndTime "11:17:41 PDT"]
[Termination "Sashadav97 won on time"]

1. d4 {[%clk 0:03:00.9]} 1... d5 {[%clk 0:02:55]} 2. Bf4 {[%clk 0:03:00.7]} 2...
Bf5 {[%clk 0:02:54.2]} 3. e3 {[%clk 0:03:00.9]} 3... e6 {[%clk 0:02:54.1]} 4.
Nf3 {[%clk 0:02:55.4]} 4... Nf6 {[%clk 0:02:52.9]} 5. c4 {[%clk 0:02:55.2]} 5...
Bxb1 {[%clk 0:02:53.8]} 6. Qxb1 {[%clk 0:02:54.9]} 6... Bb4+ {[%clk 0:02:54.2]}
7. Kd1 {[%clk 0:02:54.4]} 7... c6 {[%clk 0:02:54.6]} 8. a3 {[%clk 0:02:44.9]}
8... Bd6 {[%clk 0:02:52.5]} 9. c5 {[%clk 0:02:42.9]} 9... Bc7 {[%clk 0:02:51]}
10. b4 {[%clk 0:02:42.4]} 10... O-O {[%clk 0:02:50.3]} 11. Bd3 {[%clk
0:02:37.8]} 11... Nbd7 {[%clk 0:02:45.8]} 12. Ne5 {[%clk 0:02:31.7]} 12... g6
{[%clk 0:02:43.2]} 13. Nxd7 {[%clk 0:02:18.5]} 13... Nxd7 {[%clk 0:02:41.1]} 14.
Bxc7 {[%clk 0:02:17.3]} 14... Qxc7 {[%clk 0:02:40.7]} 15. f4 {[%clk 0:02:17.8]}
15... Rae8 {[%clk 0:02:32.4]} 16. Kd2 {[%clk 0:02:12.9]} 16... Re7 {[%clk
0:02:30.6]} 17. Qe1 {[%clk 0:01:58]} 17... f6 {[%clk 0:02:24.2]} 18. Qg3 {[%clk
0:01:57.5]} 18... e5 {[%clk 0:02:23.3]} 19. Rhf1 {[%clk 0:01:48.8]} 19... e4
{[%clk 0:02:18.4]} 20. Be2 {[%clk 0:01:46.3]} 20... b6 {[%clk 0:02:18.1]} 21.
Rfb1 {[%clk 0:01:39.2]} 21... bxc5 {[%clk 0:02:16.2]} 22. bxc5 {[%clk
0:01:37.6]} 22... Qa5+ {[%clk 0:02:16.1]} 23. Kd1 {[%clk 0:01:30]} 23... Rb8
{[%clk 0:02:10.2]} 24. Rxb8+ {[%clk 0:01:23.3]} 24... Nxb8 {[%clk 0:02:11.1]}
25. f5 {[%clk 0:01:17.7]} 25... Qc3 {[%clk 0:01:45.7]} 26. Qxb8+ {[%clk
0:01:11.7]} 26... Kg7 {[%clk 0:01:45.5]} 27. Rb1 {[%clk 0:00:51.9]} 27... Qxe3
{[%clk 0:01:44.4]} 28. Rb7 {[%clk 0:00:28.7]} 28... Qxd4+ {[%clk 0:01:43.6]} 29.
Ke1 {[%clk 0:00:26.6]} 29... Qg1+ {[%clk 0:01:41.5]} 30. Bf1 {[%clk 0:00:22.6]}
30... Qe3+ {[%clk 0:01:40.8]} 31. Be2 {[%clk 0:00:22.6]} 31... Qxc5 {[%clk
0:01:33.6]} 32. Rxe7+ {[%clk 0:00:20]} 32... Qxe7 {[%clk 0:01:33.4]} 33. fxg6
{[%clk 0:00:18.1]} 33... hxg6 {[%clk 0:01:33.3]} 34. Ba6 {[%clk 0:00:13.4]}
34... Kh6 {[%clk 0:01:22.3]} 35. Qh8+ {[%clk 0:00:03.6]} 35... Kg5 {[%clk
0:01:17.7]} 36. Bc8 {[%clk 0:00:04]} 36... Kf4 {[%clk 0:01:12.8]} 37. Qh3 {[%clk
0:00:02.4]} 37... Ke5 {[%clk 0:01:05.4]} 38. Qg3+ {[%clk 0:00:02]} 38... Kd4
{[%clk 0:01:05.5]} 39. Kd2 {[%clk 0:00:01.4]} 39... e3+ {[%clk 0:01:05]} 40. Ke2
{[%clk 0:00:01.8]} 40... Qe4 {[%clk 0:01:04.7]} 41. Qg4 {[%clk 0:00:01.5]} 41...
Qxg4+ {[%clk 0:00:54.7]} 42. Bxg4 {[%clk 0:00:02.4]} 42... Kc3 {[%clk 0:00:53]}
43. Kxe3 {[%clk 0:00:02.1]} 43... d4+ {[%clk 0:00:53.5]} 44. Kf2 {[%clk
0:00:01.6]} 44... d3 {[%clk 0:00:52]} 45. Bd1 {[%clk 0:00:01.5]} 45... Kd2
{[%clk 0:00:51.6]} 46. Bb3 {[%clk 0:00:01.6]} 46... Kc1 {[%clk 0:00:50.3]} 47.
h4 {[%clk 0:00:01.9]} 47... d2 {[%clk 0:00:49]} 48. Ke2 {[%clk 0:00:01.9]} 48...
c5 {[%clk 0:00:49.5]} 49. Bd1 {[%clk 0:00:01.6]} 49... f5 {[%clk 0:00:49.1]} 50.
g3 {[%clk 0:00:01.5]} 50... c4 {[%clk 0:00:49.4]} 51. Ba4 {[%clk 0:00:01.7]}
51... c3 {[%clk 0:00:49.5]} 52. Kd3 {[%clk 0:00:02]} 52... d1=Q+ {[%clk
0:00:48.8]} 53. Bxd1 {[%clk 0:00:02.5]} 53... Kxd1 {[%clk 0:00:49.7]} 54. Kxc3
{[%clk 0:00:02.9]} 54... Ke2 {[%clk 0:00:50.3]} 55. Kd4 {[%clk 0:00:03.2]} 55...
Kf3 {[%clk 0:00:50.6]} 56. Kc5 {[%clk 0:00:02.2]} 56... Kxg3 {[%clk 0:00:50.2]}
57. Kc6 {[%clk 0:00:01.4]} 57... f4 {[%clk 0:00:50.1]} 0-1

[Event "*** SCC Grand Prix: Titled Tuesday Blitz"]
[Site "Chess.com"]
[Date "2020.06.23"]
[Round "7"]
[White "Colombiano07"]
[Black "MasterKroket"]
[Result "1-0"]
[WhiteElo "2237"]
[BlackElo "2385"]
[TimeControl "180+1"]
[EndTime "11:17:42 PDT"]
[Termination "Colombiano07 won by resignation"]

1. Nf3 {[%clk 0:03:00.9]} 1... Nf6 {[%clk 0:03:00]} 2. b3 {[%clk 0:03:01.8]}
2... d6 {[%clk 0:02:57.1]} 3. d4 {[%clk 0:03:01.4]} 3... g6 {[%clk 0:02:55.8]}
4. Bb2 {[%clk 0:03:01]} 4... Bg7 {[%clk 0:02:56.5]} 5. e3 {[%clk 0:03:01.9]}
5... O-O {[%clk 0:02:56.5]} 6. Be2 {[%clk 0:03:02.8]} 6... Nbd7 {[%clk
0:02:55.5]} 7. O-O {[%clk 0:03:03.7]} 7... c5 {[%clk 0:02:53.4]} 8. c4 {[%clk
0:03:04.1]} 8... cxd4 {[%clk 0:02:53]} 9. exd4 {[%clk 0:03:05]} 9... d5 {[%clk
0:02:52.5]} 10. Nc3 {[%clk 0:03:03]} 10... dxc4 {[%clk 0:02:47.6]} 11. bxc4
{[%clk 0:03:01.2]} 11... b6 {[%clk 0:02:44.8]} 12. Ng5 {[%clk 0:02:50.9]} 12...
h6 {[%clk 0:02:39.2]} 13. Nge4 {[%clk 0:02:50.6]} 13... Nxe4 {[%clk 0:02:39.5]}
14. Nxe4 {[%clk 0:02:51.5]} 14... Bb7 {[%clk 0:02:39.9]} 15. Bf3 {[%clk
0:02:51.5]} 15... Rc8 {[%clk 0:02:29.5]} 16. Rc1 {[%clk 0:02:42.6]} 16... Qc7
{[%clk 0:02:13.9]} 17. Ba3 {[%clk 0:02:35.7]} 17... Nf6 {[%clk 0:02:09.1]} 18.
Re1 {[%clk 0:02:19.2]} 18... Rfd8 {[%clk 0:02:07.8]} 19. Bb2 {[%clk 0:02:11.6]}
19... Ba6 {[%clk 0:02:00.6]} 20. Qa4 {[%clk 0:02:01]} 20... Bxc4 {[%clk
0:01:56.9]} 21. Nxf6+ {[%clk 0:02:00.5]} 21... Bxf6 {[%clk 0:01:53.2]} 22. Be2
{[%clk 0:02:00.3]} 22... b5 {[%clk 0:01:50.2]} 23. Qb4 {[%clk 0:01:49.8]} 23...
a5 {[%clk 0:01:38.7]} 24. Qd2 {[%clk 0:01:50]} 24... Qb6 {[%clk 0:01:31.9]} 25.
Bc3 {[%clk 0:01:43.3]} 25... Bxe2 {[%clk 0:01:29.6]} 26. Bxa5 {[%clk 0:01:41.9]}
26... Qxd4 {[%clk 0:01:23.5]} 27. Qxd4 {[%clk 0:01:32.1]} 27... Bxd4 {[%clk
0:01:21.7]} 28. Bxd8 {[%clk 0:01:31.2]} 28... Rxd8 {[%clk 0:01:19.2]} 29. Rxe2
{[%clk 0:01:30.2]} 29... e5 {[%clk 0:01:19.8]} 30. Rb1 {[%clk 0:01:28.6]} 30...
Rc8 {[%clk 0:01:17]} 31. g3 {[%clk 0:01:27.6]} 31... Rc5 {[%clk 0:01:16.7]} 32.
Kg2 {[%clk 0:01:27.1]} 32... f6 {[%clk 0:01:14]} 33. a4 {[%clk 0:01:19]} 33...
bxa4 {[%clk 0:01:13.1]} 34. Rb7 {[%clk 0:01:19.9]} 34... a3 {[%clk 0:01:09.5]}
35. f4 {[%clk 0:01:09.8]} 35... Kf8 {[%clk 0:01:06.2]} 36. fxe5 {[%clk
0:01:09.7]} 36... fxe5 {[%clk 0:01:07.1]} 37. Kf3 {[%clk 0:01:03.7]} 37... Ke8
{[%clk 0:01:06.7]} 38. Ke4 {[%clk 0:01:04]} 38... Kd8 {[%clk 0:01:05.3]} 39. Rg7
{[%clk 0:01:02]} 39... Ra5 {[%clk 0:00:57]} 40. Ra2 {[%clk 0:00:59.1]} 40... Bb2
{[%clk 0:00:55.7]} 41. Rxg6 {[%clk 0:00:59.3]} 41... Ke7 {[%clk 0:00:42.8]} 42.
Rxh6 {[%clk 0:00:58.7]} 42... Kf7 {[%clk 0:00:43.1]} 43. Rb6 {[%clk 0:00:55]}
43... Ra4+ {[%clk 0:00:36.2]} 44. Kf5 {[%clk 0:00:52.8]} 44... Bd4 {[%clk
0:00:24]} 45. Rb7+ {[%clk 0:00:48]} 45... Ke8 {[%clk 0:00:21.7]} 46. g4 {[%clk
0:00:42.7]} 46... Kd8 {[%clk 0:00:20.3]} 47. g5 {[%clk 0:00:42.7]} 47... Kc8
{[%clk 0:00:20.5]} 48. Rb3 {[%clk 0:00:40.1]} 48... Bc5 {[%clk 0:00:19]} 49. g6
{[%clk 0:00:39.7]} 49... Ra7 {[%clk 0:00:18.9]} 50. Rc3 {[%clk 0:00:38.5]} 50...
Rc7 {[%clk 0:00:18.1]} 51. g7 {[%clk 0:00:37.6]} 51... Rxg7 {[%clk 0:00:16.6]}
52. Rxc5+ {[%clk 0:00:37.2]} 52... Kd7 {[%clk 0:00:17.5]} 53. Rxe5 {[%clk
0:00:36.9]} 53... Rh7 {[%clk 0:00:16.4]} 54. Re3 {[%clk 0:00:35.9]} 54... Rh5+
{[%clk 0:00:15.9]} 55. Kg4 {[%clk 0:00:35.8]} 1-0

[Event "*** SCC Grand Prix: Titled Tuesday Blitz"]
[Site "Chess.com"]
[Date "2020.06.23"]
[Round "7"]
[White "topotun"]
[Black "Vaathi_Coming"]
[Result "0-1"]
[WhiteElo "2703"]
[BlackElo "2858"]
[TimeControl "180+1"]
[EndTime "11:17:43 PDT"]
[Termination "Vaathi_Coming won on time"]

1. e4 {[%clk 0:02:59.1]} 1... c5 {[%clk 0:03:00]} 2. Nf3 {[%clk 0:02:59.2]} 2...
e6 {[%clk 0:02:59.9]} 3. d4 {[%clk 0:02:59.5]} 3... cxd4 {[%clk 0:03:00.3]} 4.
Nxd4 {[%clk 0:03:00.4]} 4... Nc6 {[%clk 0:03:00.7]} 5. Nc3 {[%clk 0:03:00.7]}
5... d6 {[%clk 0:03:00.9]} 6. Be3 {[%clk 0:03:00.5]} 6... Nf6 {[%clk 0:02:58.5]}
7. Be2 {[%clk 0:03:00.8]} 7... Be7 {[%clk 0:02:57.1]} 8. f4 {[%clk 0:03:01]}
8... O-O {[%clk 0:02:56.2]} 9. g4 {[%clk 0:03:00.9]} 9... Nxd4 {[%clk
0:02:32.6]} 10. Qxd4 {[%clk 0:03:00.7]} 10... e5 {[%clk 0:02:29.1]} 11. Qd1
{[%clk 0:03:00.7]} 11... Qa5 {[%clk 0:01:59.7]} 12. Bf3 {[%clk 0:02:12.9]} 12...
exf4 {[%clk 0:01:51.2]} 13. Bxf4 {[%clk 0:02:13.8]} 13... Be6 {[%clk 0:01:51.1]}
14. g5 {[%clk 0:02:12.5]} 14... Nd7 {[%clk 0:01:48.9]} 15. Qd2 {[%clk 0:02:13]}
15... f6 {[%clk 0:01:24.2]} 16. Bxd6 {[%clk 0:01:39.9]} 16... Ne5 {[%clk
0:01:11.5]} 17. Bxe5 {[%clk 0:01:24.4]} 17... fxe5 {[%clk 0:01:00]} 18. Be2
{[%clk 0:01:23]} 18... Bb4 {[%clk 0:00:47.7]} 19. a3 {[%clk 0:00:49.5]} 19...
Rad8 {[%clk 0:00:47]} 20. Bd3 {[%clk 0:00:48.2]} 20... Rc8 {[%clk 0:00:36.2]}
21. Rb1 {[%clk 0:00:45.2]} 21... Bxc3 {[%clk 0:00:28.4]} 22. bxc3 {[%clk
0:00:45.1]} 22... Rxc3 {[%clk 0:00:27.5]} 23. a4 {[%clk 0:00:34.9]} 23... Qc7
{[%clk 0:00:18.3]} 24. Rf1 {[%clk 0:00:26.6]} 24... Rd8 {[%clk 0:00:09.9]} 25.
Rxb7 {[%clk 0:00:16.2]} 25... Rcxd3 {[%clk 0:00:10.1]} 26. Qxd3 {[%clk
0:00:16.4]} 26... Qa5+ {[%clk 0:00:10.2]} 27. Ke2 {[%clk 0:00:14]} 27... Rxd3
{[%clk 0:00:10.1]} 28. cxd3 {[%clk 0:00:13.3]} 28... Qd8 {[%clk 0:00:06.3]} 29.
h4 {[%clk 0:00:12.1]} 29... Bg4+ {[%clk 0:00:05.8]} 30. Kd2 {[%clk 0:00:05.4]}
30... h6 {[%clk 0:00:03.2]} 31. Rfb1 {[%clk 0:00:03.8]} 31... hxg5 {[%clk
0:00:01.7]} 32. Rb8 {[%clk 0:00:03.2]} 32... Bc8 {[%clk 0:00:02.2]} 0-1